bitfinex/quotes_ETHUSD_20220308
["timestamp","ask_amount","ask_price","bid_price","bid_amount"]
[1646754253333,2.95412,2540.5,2540.1,1.71134056]
[1646754253533,2.95412,2540.5,2540.2,1.00137886]
[1646754253934,1.96923,2540.4,2540.3,1.00137886]
[1646754254135,0.98461,2540.3,2539.9,1.88548161]
[1646754254335,0.98461,2540.3,2539.9,0.3]
[1646754254535,0.98461,2540.3,2539.8,0.768]
[1646754254774,0.98461,2540.3,2539.8,12.668]
[1646754254972,2.95395,2540.7,2539.8,17.63665]
[1646754255172,1.90531023,2540.7,2539.9,0.3887]
[1646754255373,1.90531023,2540.7,2540.0,0.468]
[1646754255575,0.98418,2540.6,2540.1,0.768]
[1646754255870,0.98418,2540.6,2540.5,0.91869748]
[1646754256070,0.98418,2540.6,2540.5,1.68669748]
[1646754256274,1.6442477,2540.7,2540.5,13.58669748]
[1646754256471,0.003533,2541.0,2540.5,13.58669748]
[1646754256674,0.003533,2541.0,2540.5,14.97539748]
[1646754257074,0.003533,2541.0,2540.9,0.93308013]
[1646754257273,0.003533,2541.0,2540.9,1.70108013]
[1646754258937,0.003533,2541.0,2540.9,0.468]
[1646754259241,0.003533,2541.0,2539.8,11.9]
[1646754259242,0.9844,2540.8,2540.4,0.468]
[1646754259442,2.95313,2540.8,2540.3,0.468]
[1646754259642,0.003533,2541.0,2540.4,0.468]
[1646754259841,0.00195989,2541.0,2540.9,1.22218731]
[1646754260444,5.989e-05,2541.0,2540.9,0.768]
[1646754262368,5.989e-05,2541.0,2540.9,12.668]
[1646754262570,0.0001,2541.6,2541.1,0.3887]
[1646754262770,0.99904,2543.4,2541.6,12.2887]
[1646754262969,0.99904,2543.4,2542.2,3.0]
[1646754263171,14.7139,2544.1,2543.1,1.19486494]
[1646754263369,1.9396,2544.3,2543.2,0.468]
[1646754263370,0.7749,2544.3,2543.2,0.468]
[1646754263570,0.3887,2543.9,2543.2,0.468]
[1646754263868,0.95968712,2543.8,2543.2,0.468]
[1646754264068,1.94294656,2543.7,2543.2,0.468]
[1646754264270,1.37179,2543.7,2543.2,0.468]
[1646754264469,1.37179,2543.7,2543.2,0.12353247]
[1646754264470,0.3887,2543.5,2543.2,0.12353247]
[1646754264668,1.37206,2543.5,2543.2,0.12353247]
[1646754264872,0.98336,2543.5,2543.2,0.42353247]
[1646754265074,1.96672,2543.5,2543.2,0.12353247]
[1646754265274,1.96672,2543.5,2543.2,0.42353247]
[1646754265474,1.96672,2543.5,2543.2,0.12353247]
[1646754265679,0.98336,2543.5,2543.2,0.12353247]
[1646754265924,0.98311,2543.7,2543.2,0.12353247]
[1646754266124,0.98311,2543.7,2543.3,1.01090038]
[1646754266324,0.98311,2543.7,2543.4,0.468]
[1646754268125,1.2831,2544.0,2543.4,0.468]
[1646754268329,0.9831,2544.0,2543.4,0.468]
[1646754268725,0.87322985,2543.7,2543.4,0.468]
[1646754269126,2.79322996,2544.1,2543.4,0.468]
[1646754269331,0.98305,2544.3,2543.4,0.468]
[1646754269543,0.98305,2544.3,2543.5,0.98305]
[1646754269775,0.98305,2544.3,2543.7,0.3887]
[1646754269979,15.97446494,2545.6,2544.0,3.0]
[1646754269980,1.21282494,2545.6,2544.0,3.0]
[1646754270180,1.21282494,2545.6,2544.1,13.7625358]
[1646754270181,0.98265,2545.4,2544.1,13.7625358]
[1646754270480,0.98269,2545.0,2544.4,1.2825832]
[1646754270676,0.98269,2545.0,2544.5,0.468]
[1646754271077,1.20654439,2544.6,2544.5,0.468]
[1646754271476,1.20654439,2544.6,2543.8,1.9657384]
[1646754271477,1.59524439,2544.6,2543.8,1.9657384]
[1646754271676,1.59524439,2544.6,2543.8,2.2657384]
[1646754271878,1.59524439,2544.6,2544.0,0.3]
[1646754272075,2.35464,2544.5,2544.0,0.9828793]
[1646754272276,3.33765,2544.5,2544.0,0.9828793]
[1646754272476,0.98297,2544.4,2544.0,1.95565789]
[1646754273175,1.28297,2544.4,2544.1,0.9828]
[1646754273422,1.28297,2544.4,2544.1,1.2828]
[1646754273819,1.28297,2544.4,2544.1,0.3]
[1646754274019,1.28297,2544.4,2543.8,0.468]
[1646754274020,0.3887,2544.2,2543.8,0.468]
[1646754274225,0.3887,2544.2,2543.5,0.8289]
[1646754274421,1.09100388,2543.9,2543.5,0.8289]
[1646754274824,0.6887,2544.0,2543.5,0.8289]
[1646754275023,2.65497,2544.0,2543.5,0.8289]
[1646754275224,2.35497,2544.0,2543.5,1.1289]
[1646754275424,0.98314,2543.9,2543.5,1.1289]
[1646754276626,0.98314,2543.9,2543.5,13.0289]
[1646754276925,0.98314,2543.9,2543.6,1.0559938]
[1646754277176,0.98314,2543.9,2543.7,0.468]
[1646754277367,0.98314,2543.9,2543.7,0.768]
[1646754277767,0.00470323,2543.8,2543.7,0.768]
[1646754277968,0.00470323,2543.8,2543.7,0.4071]
[1646754278171,0.98797323,2543.8,2543.5,0.3609]
[1646754278371,0.00470323,2543.8,2543.5,1.8119313]
[1646754278571,0.00470323,2543.8,2543.6,1.09358019]
[1646754278768,0.00470323,2543.8,2543.7,1.45087]
[1646754279170,0.00470315,2543.9,2543.7,1.45087]
[1646754279368,0.00470315,2543.9,2543.7,0.768]
[1646754279568,0.00470315,2543.9,2543.7,0.468]
[1646754279772,0.00470315,2543.9,2543.5,0.3609]
[1646754279972,0.98305,2544.0,2543.5,0.3609]
[1646754280174,0.3887,2543.9,2543.5,0.3609]
[1646754280374,2.35516,2543.9,2543.5,0.3609]
[1646754280572,2.35516,2543.9,2543.3,0.468]
[1646754280573,0.98313,2543.7,2543.3,0.468]
[1646754280774,0.98305,2544.0,2543.5,0.468]
[1646754280775,0.3,2544.0,2543.5,0.468]
[1646754281022,0.3,2544.1,2543.5,0.468]
[1646754281227,0.3887,2544.8,2543.5,0.768]
[1646754281420,0.3887,2544.6,2543.5,0.768]
[1646754281622,0.96008379,2544.6,2543.9,0.92201337]
[1646754281821,0.96008379,2544.6,2544.0,1.45086]
[1646754282021,0.98284,2544.5,2544.0,1.75086]
[1646754282221,0.00456729,2544.3,2544.0,0.768]
[1646754282425,1.97059729,2544.3,2544.0,0.768]
[1646754282825,2.27059729,2544.3,2544.0,0.768]
[1646754283024,2.26603,2544.3,2544.0,0.768]
[1646754283225,1.96603,2544.3,2544.0,0.768]
[1646754283425,2.27076485,2544.3,2544.0,0.768]
[1646754283831,3.93247,2545.0,2544.2,5.0]
[1646754284030,7.29,2545.6,2544.3,12.38046582]
[1646754284031,0.99904,2545.6,2544.3,12.38046582]
[1646754284229,27.8255428,2546.5,2544.6,11.9]
[1646754284230,0.0200028,2546.5,2544.6,11.9]
[1646754284426,0.0200028,2546.5,2545.0,0.01264257]
[1646754284689,0.0200028,2546.5,2545.2,11.9]
[1646754284880,0.0200028,2546.5,2545.9,1.00749335]
[1646754285081,0.0200028,2546.5,2546.1,3.5033604]
[1646754285280,0.0200028,2546.5,2546.2,0.468]
[1646754285880,0.0200028,2546.5,2546.2,2.43174]
[1646754286184,0.0200028,2546.5,2546.2,0.468]
[1646754286484,1.9840928,2546.5,2546.2,0.468]
[1646754286885,2.9661628,2546.5,2546.2,0.468]
[1646754287081,2.96881552,2546.5,2546.2,0.468]
[1646754287482,3.26881552,2546.5,2546.2,0.468]
[1646754287681,2.96881552,2546.5,2546.2,0.468]
[1646754288083,2.97387557,2546.5,2546.2,0.468]
[1646754288282,2.97122285,2546.5,2546.2,0.468]
[1646754288516,2.97122285,2546.5,2546.0,1.9641798]
[1646754288720,1.02133007,2546.2,2545.8,2.9644131]
[1646754288917,0.98226,2546.1,2545.8,1.9644131]
[1646754289519,0.98226,2546.1,2545.9,1.45015]
[1646754289721,0.98226,2546.1,2546.0,0.468]
[1646754289722,1.96439,2546.1,2546.0,0.468]
[1646754289920,0.98202,2546.2,2546.0,0.468]
[1646754290120,1.96403,2546.2,2545.7,1.96431]
[1646754290321,1.96403,2546.2,2546.0,0.3]
[1646754290520,1.96403,2546.2,2545.7,1.96431]
[1646754290521,2.84823104,2546.2,2545.7,2.26431]
[1646754290723,1.96957039,2546.1,2545.7,2.26431]
[1646754290920,0.98219,2546.0,2545.8,0.468]
[1646754291123,1.96443,2546.0,2545.7,2.26431]
[1646754291725,1.96443,2546.0,2545.8,0.98214]
[1646754291921,1.96914784,2546.0,2545.8,0.98214]
[1646754292371,2.26914784,2546.0,2545.7,1.3]
[1646754292667,2.26914784,2546.0,2545.4,11.9]
[1646754292668,1.00095504,2545.9,2545.4,11.9]
[1646754292869,1.00095504,2545.9,2545.8,2.9463091]
[1646754293470,5.26914784,2546.0,2545.1,0.19556751]
[1646754293671,3.0,2545.3,2545.2,0.468]
[1646754293869,0.3,2545.4,2545.1,0.468]
[1646754294169,5.26476,2545.6,2545.2,1.96464]
[1646754294372,2.26476,2545.6,2545.2,1.96464]
[1646754294569,2.26476,2545.6,2545.3,1.44365106]
[1646754294772,2.26476,2545.6,2545.3,1.74365106]
[1646754294973,2.26476,2545.6,2545.2,2.96464]
[1646754295173,2.26476,2545.6,2545.3,0.468]
[1646754295474,0.98232,2545.4,2545.3,0.468]
[1646754297118,0.98232,2545.4,2544.7,2.94694]
[1646754297319,3.0,2545.2,2544.8,1.45035]
[1646754297520,3.0,2544.9,2544.8,0.98235]
[1646754297721,3.0,2545.1,2544.6,0.468]
[1646754297922,0.3,2544.9,2544.6,0.468]
[1646754298319,0.3,2545.2,2544.8,0.98235]
[1646754298523,1.96509,2544.9,2544.7,13.86496]
[1646754298722,1.96509,2544.9,2544.7,2.43296]
[1646754298919,2.26509,2544.9,2544.7,3.43296]
[1646754299124,2.26980203,2544.9,2544.7,2.73296]
[1646754299319,3.0,2544.8,2544.5,0.0047127]
[1646754299525,3.0,2544.8,2544.5,0.4727127]
[1646754299778,4.9654,2544.8,2544.5,0.4727127]
[1646754299980,0.98268,2544.7,2544.5,0.468]
[1646754300279,2.26528,2544.7,2544.5,1.45056]
[1646754300876,1.2826,2544.7,2544.5,1.45056]
[1646754301076,0.3,2544.7,2544.5,1.45056]
[1646754301276,1.28492718,2544.8,2544.5,1.45056]
[1646754301478,1.28492718,2544.8,2544.5,1.75056]
[1646754301677,0.98492718,2544.8,2544.5,1.75056]
[1646754301878,1.28492718,2544.8,2544.5,1.75056]
[1646754302082,1.28492718,2544.8,2544.5,0.768]
[1646754302083,3.0,2544.6,2544.5,0.768]
[1646754302277,3.0,2544.6,2544.1,1.96538]
[1646754302482,1.67119,2544.7,2543.2,11.64062]
[1646754302483,3.0,2544.2,2543.3,4.93643513]
[1646754302680,0.3,2544.6,2544.5,0.00491463]
[1646754302879,1.34311997,2544.3,2543.8,1.4509]
[1646754303078,3.0,2543.9,2543.8,1.4509]
[1646754303279,0.43205139,2543.9,2543.8,1.4509]
[1646754303726,1.28298,2544.1,2543.8,1.4509]
[1646754304018,2.26583,2544.1,2543.8,1.4509]
[1646754304425,0.43205139,2543.9,2543.8,0.468]
[1646754304627,0.43205139,2543.9,2543.8,1.44912711]
[1646754305025,0.98580866,2544.1,2543.8,0.468]
[1646754305225,0.98580866,2544.1,2543.4,0.98306]
[1646754305226,0.98285,2544.1,2543.4,0.98306]
[1646754305425,0.98285,2544.1,2543.5,0.94280704]
[1646754305624,0.98285,2544.1,2543.6,1.66942176]
[1646754305825,1.96583,2544.1,2543.6,1.66942176]
[1646754306023,1.96583,2544.1,2543.7,0.94519664]
[1646754306024,0.98285,2544.1,2543.7,0.94519664]
[1646754306224,0.98285,2544.1,2543.7,1.71319664]
[1646754306424,0.98285,2544.1,2543.8,0.94519664]
[1646754306827,1.96573,2544.1,2543.8,0.94519664]
[1646754307279,1.96583,2544.0,2543.8,0.00508125]
[1646754308271,1.96583,2544.0,2543.9,0.94656645]
[1646754308773,1.96583,2544.0,2543.3,2.43398]
[1646754308774,2.35453,2544.0,2543.3,2.43398]
[1646754308971,2.35453,2544.0,2543.3,0.468]
[1646754308972,1.37187,2543.8,2543.3,0.468]
[1646754309173,1.9380075,2543.6,2543.3,0.468]
[1646754309375,3.9044075,2543.6,2543.3,0.468]
[1646754309576,4.92582507,2543.6,2543.0,0.9832]
[1646754309779,4.92582507,2543.6,2543.0,1.4512]
[1646754309976,5.61452507,2543.6,2543.0,1.4512]
[1646754310377,5.61452507,2543.6,2543.0,1.7512]
[1646754311019,6.59773507,2543.6,2543.0,1.7512]
[1646754311220,6.59773507,2543.6,2543.0,0.768]
[1646754311423,6.59773507,2543.6,2543.1,5.46613]
[1646754311424,4.2044075,2543.6,2543.1,5.46613]
[1646754311619,2.2380075,2543.6,2543.2,0.468]
[1646754311819,2.2380075,2543.6,2542.9,13.91946996]
[1646754312019,2.2380075,2543.6,2543.0,0.468]
[1646754312020,0.9831,2543.5,2543.0,0.468]
[1646754312220,1.2831,2543.5,2542.5,0.468]
[1646754312422,1.2831,2543.5,2542.8,0.02031542]
[1646754312423,0.9834,2543.3,2542.8,0.02031542]
[1646754312620,1.05735981,2543.2,2542.8,0.02031542]
[1646754312821,1.9669,2543.2,2542.8,0.02031542]
[1646754313021,0.3,2543.3,2542.8,0.48831542]
[1646754313221,0.98314,2543.4,2542.8,0.768]
[1646754313425,0.98325,2543.3,2542.8,0.768]
[1646754313921,1.01300129,2543.1,2542.8,0.468]
[1646754314124,1.01300129,2543.1,2542.3,0.468]
[1646754314322,0.3887,2543.0,2542.1,1.35237591]
[1646754314522,1.9380075,2542.6,2542.1,1.35237591]
[1646754314984,3.9053075,2542.6,2542.1,1.35237591]
[1646754315179,3.9053075,2542.6,2542.2,1.22690054]
[1646754315380,1.9380075,2542.6,2542.2,1.69490054]
[1646754315581,0.98345,2542.4,2542.2,0.468]
[1646754315879,0.98345,2542.4,2542.2,0.768]
[1646754316280,1.28345,2542.4,2542.2,0.01875]
[1646754316481,1.28345,2542.4,2542.1,1.30211591]
[1646754316781,0.98359,2542.3,2542.1,1.30211591]
[1646754316980,0.98359,2542.3,2542.2,0.00506123]
[1646754317179,0.98359,2542.3,2542.1,0.58293714]
[1646754317180,1.28359,2542.3,2542.1,0.58293714]
[1646754317783,1.28359,2542.3,2542.0,0.468]
[1646754317784,1.4707854,2542.2,2541.8,0.02024797]
[1646754318082,2.2674,2542.3,2541.8,0.02024797]
[1646754318281,2.2674,2542.3,2541.6,1.17768986]
[1646754318720,2.6561,2542.3,2541.6,1.17768986]
[1646754318919,1.96753,2542.2,2541.6,1.17768986]
[1646754319120,2.95132,2542.2,2541.6,1.17768986]
[1646754319321,4.21427387,2542.2,2541.6,1.47768986]
[1646754319522,0.98379,2542.2,2541.6,1.47768986]
[1646754319726,1.9380075,2541.9,2541.6,1.47768986]
[1646754319928,3.876015,2541.9,2541.6,1.94568986]
[1646754320130,2.29025342,2541.9,2541.6,13.84568986]
[1646754320328,1.30655342,2541.9,2541.6,13.84568986]
[1646754320527,3.93522,2542.9,2541.6,14.84568986]
[1646754320731,3.93522,2542.9,2541.6,3.66251225]
[1646754320732,2.95047,2542.8,2541.6,3.66251225]
[1646754320928,2.95047,2542.8,2541.7,11.9]
[1646754321128,2.95047,2542.8,2541.8,12.368]
[1646754321328,0.98353,2542.6,2541.9,0.468]
[1646754321529,1.96694,2542.8,2542.0,11.9]
[1646754321729,11.52882724,2543.3,2542.7,1.13850089]
[1646754321927,1.37132724,2543.3,2542.8,0.468]
[1646754322177,1.37132724,2543.3,2542.9,0.468]
[1646754322178,1.96662,2543.2,2542.9,0.468]
[1646754322774,1.96662,2543.2,2542.9,0.768]
[1646754323374,0.3887,2543.1,2542.4,0.98341]
[1646754323575,1.37225,2542.9,2542.5,0.468]
[1646754323773,1.37225,2542.9,2541.9,4.12907]
[1646754323976,1.37225,2542.9,2541.6,0.468]
[1646754324177,1.09139853,2542.2,2541.6,0.468]
[1646754324374,0.98379,2542.1,2541.6,0.468]
[1646754324576,0.98392,2541.9,2541.2,4.2667905]
[1646754324777,0.98392,2541.9,2541.3,3.5]
[1646754324979,0.3887,2541.9,2541.3,3.5]
[1646754325179,0.75084139,2542.2,2541.2,0.0200905]
[1646754325180,0.3,2542.0,2541.2,0.0200905]
[1646754325386,0.98048609,2541.4,2541.2,0.0200905]
[1646754326725,0.98048609,2541.4,2541.2,0.0251058]
[1646754327128,0.98048609,2541.4,2540.8,0.02006421]
[1646754327129,2.35336609,2541.4,2540.8,0.02006421]
[1646754327730,2.35734,2541.2,2540.4,0.3934]
[1646754328031,2.44394233,2541.0,2540.4,0.3934]
[1646754328227,2.44394233,2541.0,2540.3,0.87203904]
[1646754328228,3.72826233,2541.0,2540.3,0.87203904]
[1646754328427,2.74394233,2541.0,2539.9,0.468]
[1646754328629,2.44394233,2541.0,2540.0,0.77124047]
[1646754328831,1.67302,2541.0,2540.0,0.77124047]
[1646754329031,1.28432,2541.0,2540.0,1.23924047]
[1646754329229,1.28432,2541.0,2540.1,1.07124047]
[1646754329429,1.28432,2541.0,2540.2,18.60755047]
[1646754329683,1.28432,2541.0,2540.3,1.23924047]
[1646754329684,0.98432,2541.0,2540.3,1.23924047]
[1646754329877,2.24215739,2541.0,2540.4,0.77124047]
[1646754330080,2.63085739,2541.0,2540.4,0.77124047]
[1646754330277,2.63085739,2541.0,2540.3,0.468]
[1646754330479,2.63085739,2541.0,2539.7,3.5]
[1646754330684,0.3887,2540.7,2539.8,1.23737502]
[1646754330879,1.3731,2540.6,2539.9,0.76937502]
[1646754331078,0.9844,2540.6,2540.2,0.98285627]
[1646754331282,0.95783739,2541.0,2540.2,0.98285627]
[1646754331485,0.3,2540.8,2540.2,0.98285627]
[1646754331679,0.98427,2540.9,2540.2,0.98285627]
[1646754331879,1.28427,2540.9,2540.2,0.98285627]
[1646754332183,1.28427,2540.9,2540.2,1.28285627]
[1646754332379,1.28427,2540.9,2540.2,2.26708627]
[1646754332680,1.96851,2541.6,2540.6,1.226555]
[1646754332880,1.96851,2541.6,2540.7,0.468]
[1646754333080,2.35721,2541.6,2540.7,0.768]
[1646754333289,1.96851,2541.6,2540.7,0.768]
[1646754333526,1.96851,2541.6,2540.8,0.98401]
[1646754333722,1.96851,2541.6,2541.2,1.48968801]
[1646754333923,1.96851,2541.6,2541.3,0.468]
[1646754334422,1.96851,2541.6,2541.3,0.768]
[1646754334624,0.98398,2541.5,2541.3,0.768]
[1646754334827,3.93572,2541.9,2541.3,12.668]
[1646754335027,0.00489334,2542.8,2541.3,16.75226751]
[1646754335229,0.00489334,2542.8,2541.3,17.75226751]
[1646754335431,0.00489334,2542.8,2541.5,21.1397]
[1646754335633,0.00489334,2542.8,2542.3,12.2887]
[1646754335634,9.334e-05,2542.8,2542.3,12.2887]
[1646754335834,9.334e-05,2542.8,2542.5,12.2887]
[1646754336027,1.96611,2544.1,2542.7,12.2887]
[1646754336227,2.35481,2544.1,2542.9,12.2]
[1646754336427,2.35481,2544.1,2543.0,0.468]
[1646754336629,0.98313,2543.7,2543.0,0.468]
[1646754337028,0.98313,2543.7,2543.1,0.98311]
[1646754337029,2.26628,2543.7,2543.1,0.98311]
[1646754337273,2.65498,2543.7,2543.0,0.468]
[1646754337474,2.60498,2543.7,2543.0,0.468]
[1646754337675,1.91628,2543.7,2543.0,0.468]
[1646754337973,0.13819996,2544.4,2543.0,0.468]
[1646754337974,0.020073,2544.7,2543.1,3.69556751]
[1646754338174,1.985853,2544.7,2543.6,12.88284]
[1646754338377,1.985853,2544.7,2543.7,0.468]
[1646754338378,0.98282,2544.6,2543.7,0.468]
[1646754338573,0.408773,2544.7,2543.7,0.468]
[1646754338773,0.408773,2544.7,2543.8,1.96554]
[1646754338774,1.22231608,2544.4,2543.8,1.96554]
[1646754338974,0.01062697,2544.3,2543.9,0.468]
[1646754339175,0.01062697,2544.3,2543.8,0.468]
[1646754339374,0.01062697,2544.3,2543.4,0.3]
[1646754339375,0.99357697,2544.3,2543.5,0.468]
[1646754339575,0.3887,2544.2,2543.5,0.768]
[1646754339979,0.99357697,2544.3,2543.8,1.14763607]
[1646754339980,0.01062697,2544.3,2543.8,1.14763607]
[1646754340181,0.00506086,2544.2,2543.9,0.468]
[1646754340681,0.00506086,2544.2,2543.9,1.75084]
[1646754341122,0.00506086,2544.2,2543.9,0.768]
[1646754341520,0.00506086,2544.2,2543.9,1.75084]
[1646754341923,0.00506086,2544.2,2543.9,0.468]
[1646754342122,1.28286,2544.4,2543.9,0.468]
[1646754342123,0.98286,2544.4,2543.9,0.468]
[1646754342324,3.0,2544.2,2543.2,0.468]
[1646754342523,0.98334,2544.0,2542.8,0.468]
[1646754342721,0.00506086,2544.2,2542.8,0.468]
[1646754342722,0.3887,2543.9,2542.8,0.468]
[1646754342924,0.3887,2543.7,2543.0,0.87413802]
[1646754343127,0.3887,2543.7,2543.1,0.468]
[1646754343627,0.3,2544.1,2543.1,4.95114]
[1646754343628,0.0048888,2543.5,2543.1,4.95114]
[1646754343822,0.0048888,2543.5,2543.1,1.45114]
[1646754344022,0.0048888,2543.5,2543.1,2.75114]
[1646754344223,0.0048888,2543.5,2543.4,1.19069579]
[1646754344424,0.0048888,2543.5,2543.4,1.65869579]
[1646754344876,0.3887,2544.8,2543.5,3.98297]
[1646754345174,8.29,2544.9,2543.5,1.45097]
[1646754345175,0.01857664,2544.3,2543.5,1.45097]
[1646754345374,0.98297,2544.1,2543.5,1.45097]
[1646754345877,0.98297,2544.1,2543.5,0.468]
[1646754346074,0.98297,2544.1,2543.5,1.62544079]
[1646754347174,1.37167,2544.1,2543.0,0.468]
[1646754347374,1.37167,2544.1,2542.8,0.468]
[1646754347375,2.37071,2544.1,2542.8,0.468]
[1646754348174,1.11105856,2543.9,2543.1,1.1723514]
[1646754348422,0.98325,2543.7,2543.3,0.00476239]
[1646754348622,2.2665,2543.7,2543.3,0.00476239]
[1646754349022,0.98325,2543.7,2543.3,0.00476239]
[1646754349222,1.28325,2543.7,2543.3,0.00476239]
[1646754349422,1.28325,2543.7,2543.1,1.1723514]
[1646754349623,1.28325,2543.7,2543.4,0.00476234]
[1646754350026,1.96647,2544.1,2543.9,1.96648]
[1646754350027,1.17001221,2544.1,2543.9,1.96648]
[1646754350228,1.2831084,2544.2,2543.9,1.96648]
[1646754350527,1.98791037,2544.4,2543.9,1.96648]
[1646754350528,0.00476037,2544.4,2543.9,1.96648]
[1646754350729,2.2662167,2544.5,2543.9,1.96648]
[1646754350927,2.2662167,2544.5,2543.9,1.97123922]
[1646754350928,0.00475819,2544.4,2543.9,1.97123922]
[1646754352181,0.00475819,2544.4,2544.0,0.00459824]
[1646754352182,0.98761491,2544.4,2544.0,0.00459824]
[1646754352373,0.98761491,2544.4,2544.0,0.98766824]
[1646754352971,0.9830174,2544.4,2544.0,0.98307]
[1646754353373,0.98761495,2544.4,2544.1,0.00459819]
[1646754353572,1.97076495,2544.4,2544.1,0.00459819]
[1646754354373,1.97536255,2544.4,2544.1,0.00919642]
[1646754354572,1.970765,2544.4,2544.1,0.00459823]
[1646754354976,0.0045976,2544.4,2544.1,0.00459823]
[1646754355923,0.00460449,2544.4,2544.1,0.00460513]
[1646754356626,0.00460449,2544.4,2544.2,2.94847]
[1646754356824,0.00920898,2544.4,2544.2,2.94847]
[1646754357026,0.00460449,2544.4,2544.3,0.468]
[1646754357425,0.01841336,2545.1,2544.5,1.12785673]
[1646754357624,1.00111336,2545.1,2544.6,0.98272]
[1646754357824,0.9827,2545.1,2544.6,0.98272]
[1646754358224,0.9828574,2545.0,2544.6,0.98272]
[1646754359228,0.0049431,2544.9,2544.6,0.98272]
[1646754360077,0.9827,2545.1,2544.6,0.98272]
[1646754360479,0.00263581,2544.9,2544.6,2.03589925]
[1646754360680,1.96818581,2544.9,2544.6,2.03589925]
[1646754361279,1.96818581,2544.9,2544.6,0.98272]
[1646754361483,2.26818581,2544.9,2544.6,0.98272]
[1646754362483,2.26555,2544.9,2544.6,0.98272]
[1646754363081,2.27062753,2544.9,2544.6,0.98272]
[1646754363542,3.9830713,2544.8,2544.6,0.98272]
[1646754363942,4.2830713,2544.8,2544.6,0.98272]
[1646754364344,4.2830713,2544.8,2544.2,2.9535489]
[1646754364345,5.00659201,2544.8,2544.2,2.9535489]
[1646754364550,3.0,2544.2,2543.7,1.25921143]
[1646754364744,0.3,2544.0,2543.7,1.25921143]
[1646754365444,0.3,2544.0,2542.9,4.32579]
[1646754365445,6.0,2543.8,2542.9,4.32579]
[1646754365647,3.9836369,2543.3,2542.9,4.32579]
[1646754365846,0.9836369,2543.3,2542.9,4.32579]
[1646754366243,1.2836369,2543.3,2543.1,0.98354]
[1646754366743,3.2510469,2543.3,2543.1,0.98354]
[1646754366944,3.2510469,2543.3,2542.9,3.93319]
[1646754367190,3.3887,2543.0,2541.5,0.393]
[1646754367377,0.9837977,2542.7,2541.5,0.393]
[1646754367576,1.9675953,2542.7,2541.5,0.393]
[1646754367776,0.6887,2542.7,2541.5,0.393]
[1646754367977,1.50255989,2542.7,2542.6,0.02030624]
[1646754368377,16.54075985,2542.7,2542.2,1.96778]
[1646754368576,3.0,2542.5,2541.5,0.393]
[1646754368777,1.9681282,2542.3,2541.5,0.393]
[1646754368978,1.1234888,2542.0,2541.5,0.393]
[1646754369178,2.1076488,2542.0,2541.5,4.32818]
[1646754369379,2.4076488,2542.0,2541.5,4.32818]
[1646754369578,2.4076488,2542.0,2541.5,3.93518]
[1646754370184,3.391809,2542.0,2541.5,3.93518]
[1646754370383,2.2683202,2542.0,2541.5,3.93518]
[1646754370586,0.98416,2541.9,2541.5,3.93518]
[1646754370787,0.3887,2542.8,2541.5,3.93518]
[1646754371618,0.9838676,2542.1,2541.5,3.93518]
[1646754372019,1.2838676,2542.1,2541.5,3.93518]
[1646754372619,0.98413,2542.0,2541.7,0.96445687]
[1646754372820,1.28413,2542.0,2541.7,1.94848687]
[1646754373221,1.28413,2542.0,2541.7,0.98909635]
[1646754373421,1.28413,2542.0,2541.7,0.98403]
[1646754373824,1.28413,2542.0,2541.7,0.9890963]
[1646754374025,1.9683574,2541.9,2541.7,0.9890963]
[1646754374225,2.2683574,2541.9,2541.7,0.9890963]
[1646754374679,2.2683574,2541.9,2541.7,0.98403]
[1646754375076,2.2683574,2541.9,2541.7,0.98909635]
[1646754375275,5.5683574,2541.9,2541.7,0.98909635]
[1646754375876,1.2841674,2541.9,2541.7,0.98403]
[1646754376075,4.5841674,2541.9,2541.7,0.98403]
[1646754376275,6.5527374,2541.9,2541.7,0.98909635]
[1646754376476,3.5527374,2541.9,2541.7,0.98909635]
[1646754376676,1.5841674,2541.9,2541.7,0.98909635]
[1646754376877,1.2841674,2541.9,2541.7,0.98909635]
[1646754377077,0.98386,2542.2,2541.7,0.98403]
[1646754377478,0.98386,2542.2,2541.7,0.98858355]
[1646754377879,0.9839309,2542.1,2541.7,0.98858355]
[1646754378279,2.9521009,2542.1,2541.7,0.98858355]
[1646754378721,2.9521009,2542.1,2541.8,1.97275342]
[1646754379123,0.9839309,2542.1,2541.8,2.36145342]
[1646754379322,0.9839309,2542.1,2541.8,1.97275342]
[1646754379522,0.98386,2542.2,2541.8,1.9682]
[1646754379926,0.98386,2542.2,2541.8,1.97275342]
[1646754380330,1.28386,2542.2,2541.8,1.97275342]
[1646754380527,0.98386,2542.2,2541.8,1.97275342]
[1646754380729,0.95361826,2542.0,2541.8,1.97275342]
[1646754380929,0.95361826,2542.0,2541.9,0.00472055]
[1646754381129,3.2523079,2542.1,2541.9,0.00472055]
[1646754381330,0.3,2542.1,2541.9,0.00472055]
[1646754381531,1.28386,2542.2,2541.9,0.00472055]
[1646754381929,1.28386,2542.2,2541.8,1.9682]
[1646754382184,1.28386,2542.2,2541.9,0.00474907]
[1646754382370,1.28386,2542.2,2542.0,1.19932035]
[1646754382572,0.98386,2542.2,2542.0,1.58802035]
[1646754382773,0.98374,2542.4,2542.0,1.58802035]
[1646754382975,0.98374,2542.4,2542.1,1.9674]
[1646754384471,0.98374,2542.4,2542.1,1.97198857]
[1646754385479,0.98374,2542.4,2542.1,1.9674]
[1646754385920,0.98374,2542.4,2542.1,1.97198611]
[1646754386821,0.98374,2542.4,2542.1,1.9674]
[1646754387022,0.98374,2542.4,2542.1,1.97198611]
[1646754387625,0.98374,2542.4,2542.2,3.5]
[1646754387822,0.98374,2542.4,2542.2,1.3887]
[1646754388027,1.96751,2542.7,2542.2,1.3887]
[1646754388223,0.00459026,2542.9,2542.2,0.3887]